fUST/lending_fUST_20250517
["ID","MTS","AMOUNT","RATE_DAILY","PERIOD"]
[361279073,1747416633770,-400.0,0.00013698,2]
[361279074,1747416633780,-400.0,0.00013698,2]
[361279075,1747416633789,-400.0,0.00013698,2]
[361279076,1747416633799,-400.0,0.00013698,2]
[361279077,1747416633809,-450.0,0.00013698,2]
[361279078,1747416633819,-400.0,0.00013698,2]
[361279079,1747416633828,-598.0,0.00013698,2]
[361279080,1747416633837,-400.0,0.00013698,2]
[361279081,1747416633847,-400.0,0.00013698,2]
[361279082,1747416633857,-450.0,0.00013698,2]
[361279083,1747416633866,-400.0,0.00013698,2]
[361279084,1747416633875,-400.0,0.00013698,2]
[361279085,1747416633885,-400.0,0.00013698,2]
[361279086,1747416633894,-400.0,0.00013698,2]
[361279087,1747416633903,-500.0,0.00013698,2]
[361279088,1747416633913,-450.0,0.00013698,2]
[361279089,1747416633922,-442.74633247,0.00013698,2]
[361279090,1747416633931,-450.0,0.00013698,2]
[361279091,1747416633940,-400.0,0.00013698,2]
[361279092,1747416633949,-400.0,0.00013698,2]
[361279093,1747416633959,-500.0,0.00013698,2]
[361279094,1747416633968,-450.0,0.00013698,2]
[361279095,1747416633978,-450.0,0.00013698,2]
[361279096,1747416633987,-516.93947988,0.00013698,2]
[361279097,1747416633996,-500.65416939,0.00013698,2]
[361279098,1747416634006,-235.2246693,0.00013698,2]
[361279099,1747416634015,-500.0,0.00013698,2]
[361279100,1747416634025,-500.0,0.00013698,2]
[361279101,1747416634034,-450.0,0.00013698,2]
[361279102,1747416634044,-240.75546952,0.00013698,2]
[361279103,1747416634053,-752.38,0.00013698,2]
[361279104,1747416634063,-452.67,0.00013698,2]
[361279105,1747416634072,-381.99,0.00013698,2]
[361279106,1747416634081,-450.0,0.00013698,2]
[361279107,1747416634090,-376.92025233,0.00013698,2]
[361279108,1747416634100,-450.0,0.00013698,2]
[361279109,1747416634110,-354.26,0.00013698,2]
[361279110,1747416634119,-450.0,0.00013698,2]
[361279111,1747416634128,-500.0,0.00013698,2]
[361279112,1747416634138,-500.0,0.00013698,2]
[361279113,1747416634147,-506.44,0.00013698,2]
[361279114,1747416634156,-450.0,0.00013698,2]
[361279115,1747416634166,-450.0,0.00013698,2]
[361279116,1747416634175,-161.83,0.00013698,2]
[361279117,1747416634185,-450.0,0.00013698,2]
[361279118,1747416634195,-450.0,0.00013698,2]
[361279119,1747416634204,-450.0,0.00013698,2]
[361279120,1747416634213,-450.0,0.00013698,2]
[361279121,1747416634223,-450.0,0.00013698,2]
[361279122,1747416634233,-650.521247,0.00013699,2]
[361279123,1747416634242,-450.0,0.00013835,2]
[361279124,1747416634252,-511.54063522,0.00013835,2]
[361279125,1747416634262,-450.0,0.00013835,2]
[361279126,1747416634271,-450.0,0.00013835,2]
[361279127,1747416634281,-450.0,0.00013835,2]
[361279128,1747416634290,-351.55,0.00013835,2]
[361279129,1747416634299,-450.0,0.00013835,2]
[361279130,1747416634309,-450.0,0.00013835,2]
[361279131,1747416634318,-752.38,0.00013835,2]
[361279132,1747416634328,-452.67,0.00013835,2]
[361279133,1747416634338,-207.27,0.00013835,2]
[361279134,1747416634348,-370.56,0.00013835,2]
[361279135,1747416634357,-167.33,0.00013835,2]
[361279136,1747416634367,-386.57,0.00013835,2]
[361279137,1747416634376,-450.0,0.00013835,2]
[361279138,1747416634386,-450.0,0.00013835,2]
[361279139,1747416634396,-212.26722696,0.00013883,2]
[361279140,1747416634405,-998.24360331,0.00013883,2]
[361279141,1747416634415,-160.0,0.00013883,2]
[361279142,1747416634425,-160.0,0.00013883,2]
[361279143,1747416634434,-422.39640784,0.00013883,2]
[361279144,1747416634443,-420.0,0.0001391,2]
[361279145,1747416634453,-162.23,0.00013972,2]
[361279146,1747416634463,-348.55,0.00013972,2]
[361279147,1747416634472,-450.0,0.00013972,2]
[361279148,1747416634481,-752.38,0.00013972,2]
[361279149,1747416634490,-452.67,0.00013972,2]
[361279150,1747416634500,-450.0,0.00013972,2]
[361279151,1747416634509,-450.0,0.00013972,2]
[361279152,1747416634519,-450.0,0.00014109,2]
[361279153,1747416634530,-752.38,0.00014109,2]
[361279154,1747416634542,-452.67,0.00014109,2]
[361279155,1747416634551,-450.0,0.00014109,2]
[361279156,1747416634560,-450.0,0.00014109,2]
[361279157,1747416634570,-800.0,0.00014118,2]
[361279158,1747416634581,-800.0,0.00014127,2]
[361279159,1747416634590,-207.4,0.00014144,2]
[361279160,1747416634599,-151.0,0.00014144,2]
[361279161,1747416634610,-800.0,0.00014144,2]
[361279162,1747416634620,-800.0,0.00014148,2]
[361279163,1747416634629,-800.0,0.00014175,2]
[361279164,1747416634640,-242.15167517,0.00014181,2]
[361279165,1747416634649,-800.0,0.00014191,2]
[361279166,1747416634659,-800.0,0.00014212,2]
[361279167,1747416634668,-800.0,0.00014214,2]
[361279168,1747416634678,-800.0,0.00014227,2]
[361279169,1747416634687,-450.0,0.00014246,2]
[361279170,1747416634696,-752.38,0.00014246,2]
[361279171,1747416634705,-452.67,0.00014246,2]
[361279172,1747416634715,-450.0,0.00014246,2]
[361279173,1747416634725,-450.0,0.00014246,2]
[361279174,1747416634734,-500.0,0.00014267,2]
[361279175,1747416634743,-500.0,0.00014267,2]
[361279176,1747416634753,-800.0,0.00014304,2]
[361279177,1747416634762,-800.0,0.00014319,2]
[361279178,1747416634772,-800.0,0.00014323,2]
[361279179,1747416634781,-800.0,0.00014346,2]
[361279180,1747416634790,-800.0,0.00014379,2]
[361279181,1747416634799,-450.0,0.00014383,2]
[361279182,1747416634809,-752.38,0.00014383,2]
[361279183,1747416634818,-452.67,0.00014383,2]
[361279184,1747416634827,-450.0,0.00014383,2]
[361279185,1747416634837,-474.65,0.00014383,2]
[361279186,1747416634846,-401.0,0.0001452,2]
[361279187,1747416634856,-752.38,0.0001452,2]
[361279188,1747416634865,-452.67,0.0001452,2]
[361279189,1747416634875,-450.0,0.0001452,2]
[361279190,1747416634884,-752.38,0.00014657,2]
[361279191,1747416634894,-452.67,0.00014657,2]
[361279192,1747416634904,-450.0,0.00014657,2]
[361279193,1747416634913,-652.84442803,0.0001467,2]
[361279194,1747416634922,-800.0,0.00014684,2]
[361279195,1747416634932,-800.0,0.00014686,2]
[361279196,1747416634941,-546.0,0.00014714,2]
[361279197,1747416634951,-545.85491872,0.00014757,2]
[361279198,1747416634960,-263.92,0.00014758,2]
[361279199,1747416634969,-752.38,0.00014794,2]
[361279200,1747416634979,-452.67,0.00014794,2]
[361279201,1747416634989,-450.0,0.00014794,2]
[361279202,1747416634999,-315.8774727,0.00014795,2]
[361279203,1747416635008,-2008.56,0.000148,2]
[361279204,1747416635018,-1000.0,0.00014815,2]
[361279205,1747416635028,-1000.0,0.00014815,2]
[361279206,1747416635038,-800.0,0.00014845,2]
[361279207,1747416635048,-800.0,0.00014866,2]
[361279208,1747416635058,-636.0,0.000149,2]
[361279209,1747416635068,-4958.90542683,0.000149,2]
[361279210,1747416635078,-2163.9329683,0.00014923,2]
[361279211,1747416635088,-752.38,0.00014931,2]
[361279212,1747416635098,-452.67,0.00014931,2]
[361279213,1747416635108,-450.0,0.00014931,2]
[361279214,1747416635119,-1091.06733567,0.00015,3]
[361279215,1747416635130,-80776.90832334,0.00015,2]
[361279216,1747416635145,-50739.06333264,0.00015,5]
[361279234,1747416640678,-5000.0,0.00012553,14]
[361279235,1747416640688,-500.0,0.0001268,2]
[361279236,1747416640698,-500.0,0.0001268,2]
[361279237,1747416640708,-500.0,0.0001268,2]
[361279238,1747416640717,-525.80879182,0.0001268,2]
[361279239,1747416640727,-500.0,0.0001268,2]
[361279240,1747416640736,-500.0,0.0001268,2]
[361279241,1747416640746,-500.0,0.0001268,2]
[361279242,1747416640755,-500.0,0.0001268,2]
[361279243,1747416640765,-500.0,0.0001268,2]
[361279244,1747416640774,-205.96384158,0.00013244,2]
[361279245,1747416640784,-205.96384158,0.00013575,2]
[361279246,1747416640794,-404.0,0.00014714,2]
[361279247,1747416640803,-93263.95799156,0.00015,5]
[361280236,1747417832997,-900.1571553,0.0001168,2]
[361280237,1747417833009,-653.40133027,0.0001168,2]
[361280238,1747417833036,-3446.44151443,0.0001168,2]
[361280239,1747417833046,-254.1933298,0.00011798,2]
[361280240,1747417833056,-300.0,0.00013696,2]
[361280241,1747417833066,-300.0,0.00013697,2]
[361280242,1747417833076,-300.0,0.00013697,2]
[361280243,1747417833086,-1200.0,0.00013697,2]
[361280244,1747417833095,-324.04,0.00013698,2]
[361280245,1747417833105,-400.0,0.00013698,2]
[361280246,1747417833115,-4014.71,0.00013698,2]
[361280247,1747417833124,-450.0,0.00013698,2]
[361280248,1747417833409,-450.0,0.00013698,2]
[361280249,1747417833424,-450.0,0.00013698,2]
[361280250,1747417833434,-450.0,0.00013698,2]
[361280251,1747417833444,-450.0,0.00013698,2]
[361280252,1747417833454,-478.23,0.00013698,2]
[361280253,1747417833463,-450.0,0.00013698,2]
[361280254,1747417833473,-450.0,0.00013698,2]
[361280255,1747417833483,-450.0,0.00013698,2]
[361280256,1747417833493,-450.0,0.00013698,2]
[361280257,1747417833503,-450.0,0.00013698,2]
[361280258,1747417833513,-631.216806,0.00013699,2]
[361280259,1747417833522,-507.90532716,0.00013834,2]
[361280260,1747417833532,-4014.71,0.00013835,2]
[361280261,1747417833542,-450.0,0.00013835,2]
[361280262,1747417833551,-450.0,0.00013835,2]
[361280263,1747417833560,-464.05947356,0.00013835,2]
[361280264,1747417833570,-450.0,0.00013835,2]
[361280265,1747417833579,-450.0,0.00013835,2]
[361280266,1747417833589,-800.0,0.00013851,2]
[361280267,1747417833600,-164.77107328,0.00013871,2]
[361280268,1747417833610,-800.0,0.00013877,2]
[361280269,1747417833620,-998.24360331,0.00013891,2]
[361280270,1747417833630,-160.0,0.00013891,2]
[361280271,1747417833640,-422.39640784,0.00013891,2]
[361280272,1747417833649,-212.26722696,0.00013891,2]
[361280273,1747417833659,-160.0,0.00013891,2]
[361280274,1747417833669,-800.0,0.00013892,2]
[361280275,1747417833679,-800.0,0.00013931,2]
[361280276,1747417833689,-4014.71,0.00013972,2]
[361280277,1747417833700,-399.79,0.00013972,2]
[361280278,1747417833710,-450.0,0.00013972,2]
[361280279,1747417833719,-450.0,0.00013972,2]
[361280280,1747417833729,-450.0,0.00013972,2]
[361280281,1747417833739,-800.0,0.00014016,2]
[361280282,1747417833748,-800.0,0.00014036,2]
[361280283,1747417833758,-800.0,0.00014052,2]
[361280284,1747417833768,-600.0,0.00014073,2]
[361280285,1747417833778,-250.0,0.0001409,2]
[361280286,1747417833788,-800.0,0.00014093,2]
[361280287,1747417833797,-800.0,0.000141,2]
[361280288,1747417833807,-4014.71,0.00014109,2]
[361280289,1747417833817,-450.0,0.00014109,2]
[361280290,1747417833828,-450.0,0.00014109,2]
[361280291,1747417833837,-450.0,0.00014109,2]
[361280292,1747417833848,-164.77107326,0.00014128,2]
[361280293,1747417833859,-215.0738,0.00014144,2]
[361280294,1747417833868,-4014.71,0.00014246,2]
[361280295,1747417833878,-450.0,0.00014246,2]
[361280296,1747417833888,-450.0,0.00014246,2]
[361280297,1747417833897,-450.0,0.00014246,2]
[361280298,1747417833907,-4014.71,0.00014383,2]
[361280299,1747417833917,-550.0,0.00014383,2]
[361280300,1747417833927,-450.0,0.00014383,2]
[361280301,1747417833936,-450.0,0.00014383,2]
[361280302,1747417833946,-164.77107326,0.00014386,2]
[361280303,1747417833956,-4014.71,0.0001452,2]
[361280304,1747417833965,-450.0,0.0001452,2]
[361280305,1747417833976,-450.0,0.0001452,2]
[361280306,1747417833986,-164.77107326,0.00014643,2]
[361280307,1747417833996,-4014.71,0.00014657,2]
[361280308,1747417834006,-450.0,0.00014657,2]
[361280309,1747417834016,-450.0,0.00014657,2]
[361280310,1747417834027,-154.70078677,0.0001468,7]
[361280311,1747417834037,-652.84442803,0.00014704,2]
[361280312,1747417834046,-183.546,0.00014725,2]
[361280313,1747417834055,-2240.0,0.00014725,2]
[361280314,1747417834065,-404.0,0.00014725,2]
[361280315,1747417834074,-211.136,0.00014794,2]
[361280316,1747417834084,-4014.71,0.00014794,2]
[361280317,1747417834093,-450.0,0.00014794,2]
[361280318,1747417834103,-450.0,0.00014794,2]
[361280319,1747417834113,-152.52560017,0.00014831,2]
[361280320,1747417834123,-152.52560017,0.00014854,2]
[361280321,1747417834134,-152.52560017,0.00014877,2]
[361280322,1747417834144,-152.52560017,0.000149,2]
[361280323,1747417834154,-151.0,0.000149,2]
[361280324,1747417834164,-164.77107326,0.000149,2]
[361280325,1747417834173,-4156.42487946,0.000149,2]
[361280326,1747417834183,-4463.01488412,0.000149,2]
[361280327,1747417834193,-1731.1463747,0.00014924,2]
[361280328,1747417834205,-4014.71,0.00014931,2]
[361280329,1747417834215,-450.0,0.00014931,2]
[361280330,1747417834225,-450.0,0.00014931,2]
[361280331,1747417834235,-500.0,0.00014972,2]
[361280332,1747417834244,-500.0,0.00014972,2]
[361280333,1747417834254,-500.0,0.00014972,2]
[361280334,1747417834264,-453.17892744,0.00014972,2]
[361280335,1747417834277,-172.78712452,0.00014972,2]
[361280336,1747417834287,-500.0,0.00014972,2]
[361280337,1747417834297,-632.5420992,0.00014973,2]
[361280338,1747417834307,-500.0,0.00014973,2]
[361280339,1747417834318,-500.0,0.00014973,2]
[361280340,1747417834328,-500.0,0.00014973,2]
[361280341,1747417834338,-500.0,0.00014973,2]
[361280342,1747417834348,-500.0,0.00014973,2]
[361280343,1747417834357,-500.0,0.00014973,2]
[361280344,1747417834367,-500.0,0.00014973,2]
[361280345,1747417834377,-545.53366784,0.00015,3]
[361280346,1747417834386,-56641.81314521,0.00015,2]
[361280347,1747417834396,-221968.66144445,0.00015,5]
[361280372,1747417838747,-430.35769453,0.00013969,2]
[361280374,1747417838756,-240.24230547,0.00013969,2]
[361280594,1747417843716,-5000.0,0.00013829,2]
[361280596,1747417843726,-259.75769453,0.00013969,2]
[361280598,1747417843736,-500.0,0.00013969,2]
[361280600,1747417843745,-500.0,0.00013969,2]
[361280602,1747417843755,-500.0,0.00013969,2]
[361280604,1747417843764,-12.44982373,0.00013969,2]
[361280607,1747417843788,-487.55017627,0.00013969,2]
[361280609,1747417843798,-500.0,0.00013969,2]
[361280611,1747417843807,-437.37079197,0.00013969,2]
[361280613,1747417843816,-500.0,0.00013969,2]
[361280615,1747417843826,-500.0,0.00013969,2]
[361280616,1747417843835,-500.0,0.00013969,2]
[361280619,1747417843844,-500.0,0.00013969,2]
[361280621,1747417843854,-500.0,0.00013969,2]
[361280624,1747417843865,-500.0,0.00013969,2]
[361280626,1747417843874,-295.0,0.00013969,2]
[361280628,1747417843884,-500.0,0.00013969,2]
[361280630,1747417843893,-649.5669108,0.00013969,2]
[361280632,1747417843902,-500.0,0.00013969,2]
[361280634,1747417843911,-500.0,0.00013969,2]
[361280636,1747417843921,-500.0,0.00013969,2]
[361280638,1747417843930,-500.0,0.00013969,2]
[361280640,1747417843940,-500.0,0.00013969,2]
[361280642,1747417843949,-500.0,0.00013969,2]
[361280644,1747417843959,-500.0,0.00013969,2]
[361280646,1747417843968,-500.0,0.00013969,2]
[361280648,1747417843977,-500.0,0.00013969,2]
[361280650,1747417843986,-500.0,0.00013969,2]
[361280652,1747417843996,-500.0,0.00013969,2]
[361280654,1747417844005,-500.0,0.00013969,2]
[361280656,1747417844014,-502.86764354,0.00013969,2]
[361280658,1747417844023,-3881.82943433,0.00015,5]
[361280943,1747417846833,-10881.77661863,0.00015,5]
[361280949,1747417846887,-5120.06181436,0.00015,5]
[361280952,1747417846899,-5162.13407209,0.00015,5]
[361280954,1747417846912,-1048.79303016,0.00015,5]
[361280963,1747417846994,-3259.25100578,0.00015,5]
[361280965,1747417847007,-36637.27407492,0.00015,5]
[361281488,1747418808055,-1300.0,0.00011678,2]
[361281493,1747418961071,-203.55484585,0.0001121,2]
[361281494,1747418966567,-196.47763723,0.0001121,2]
[361281495,1747418969240,-155.26618777,0.0001121,2]
[361281517,1747419031916,-5000.0,0.00011098,2]
[361281518,1747419031926,-300.0,0.00011208,2]
[361281519,1747419031936,-300.0,0.00011209,2]
[361281520,1747419031946,-300.0,0.00011209,2]
[361281521,1747419031956,-1200.0,0.00011209,2]
[361281522,1747419031966,-24344.70132915,0.0001121,2]
[361281523,1747419031975,-40100.59690858,0.00011962,2]
[361281524,1747419031985,-493.04119911,0.00011963,2]
[361281525,1747419031995,-255.0,0.00011963,2]
[361281526,1747419032006,-500.0,0.00011963,2]
[361281527,1747419032015,-500.0,0.00011963,2]
[361281528,1747419032025,-500.0,0.00011963,2]
[361281529,1747419032036,-500.0,0.00011963,2]
[361281530,1747419032046,-214.95669108,0.00011963,2]
[361281531,1747419032056,-500.0,0.00011963,2]
[361281532,1747419032066,-500.0,0.00011963,2]
[361281533,1747419032077,-500.0,0.00011963,2]
[361281534,1747419032087,-500.0,0.00011963,2]
[361281535,1747419032097,-500.0,0.00011963,2]
[361281536,1747419032107,-9604.6977768,0.00011964,2]
[361281537,1747419032117,-420.0,0.00012315,2]
[361281538,1747419032127,-929.0,0.0001233,2]
[361281539,1747419032137,-587.0,0.0001353,2]
[361281540,1747419032147,-5940.07048213,0.00013598,2]
[361281541,1747419032157,-470.95098717,0.00013697,2]
[361281542,1747419032166,-500.0,0.00013697,2]
[361281543,1747419032176,-500.0,0.00013697,2]
[361281544,1747419032185,-367.2252492,0.00013697,2]
[361281545,1747419032195,-400.0,0.00013698,2]
[361281546,1747419032204,-400.0,0.00013698,2]
[361281547,1747419032215,-400.0,0.00013698,2]
[361281548,1747419032225,-156.54557135,0.00013698,2]
[361281549,1747419032236,-400.0,0.00013698,2]
[361281550,1747419032246,-400.0,0.00013698,2]
[361281551,1747419032256,-400.0,0.00013698,2]
[361281552,1747419032266,-400.0,0.00013698,2]
[361281553,1747419032276,-400.0,0.00013698,2]
[361281554,1747419032286,-311.07373174,0.00013698,2]
[361281555,1747419032296,-400.0,0.00013698,2]
[361281556,1747419032306,-240.43156038,0.00013698,2]
[361281557,1747419032316,-400.0,0.00013698,2]
[361281558,1747419032326,-400.0,0.00013698,2]
[361281559,1747419032337,-450.0,0.00013698,2]
[361281560,1747419032347,-400.0,0.00013698,2]
[361281561,1747419032356,-400.0,0.00013698,2]
[361281562,1747419032367,-400.0,0.00013698,2]
[361281563,1747419032377,-400.0,0.00013698,2]
[361281564,1747419032387,-400.0,0.00013698,2]
[361281565,1747419032402,-450.0,0.00013698,2]
[361281566,1747419032418,-400.0,0.00013698,2]
[361281567,1747419032430,-450.0,0.00013698,2]
[361281568,1747419032440,-450.0,0.00013698,2]
[361281569,1747419032450,-400.0,0.00013698,2]
[361281570,1747419032460,-2341.92,0.00013698,2]
[361281571,1747419032470,-342.82009552,0.00013698,2]
[361281572,1747419032479,-450.0,0.00013698,2]
[361281573,1747419032489,-400.0,0.00013698,2]
[361281574,1747419032498,-450.0,0.00013698,2]
[361281575,1747419032508,-400.0,0.00013698,2]
[361281576,1747419032519,-400.0,0.00013698,2]
[361281577,1747419032529,-450.0,0.00013698,2]
[361281578,1747419032539,-450.0,0.00013698,2]
[361281579,1747419032549,-400.0,0.00013698,2]
[361281580,1747419032558,-450.0,0.00013698,2]
[361281581,1747419032568,-322.50026358,0.00013698,2]
[361281582,1747419032577,-369.35,0.00013698,2]
[361281583,1747419032586,-400.0,0.00013698,2]
[361281584,1747419032596,-400.0,0.00013698,2]
[361281585,1747419032607,-450.0,0.00013698,2]
[361281586,1747419032616,-400.0,0.00013698,2]
[361281587,1747419032625,-400.0,0.00013698,2]
[361281588,1747419032635,-450.0,0.00013698,2]
[361281589,1747419032644,-211.67456323,0.00013698,2]
[361281590,1747419032654,-151.11532916,0.00013698,2]
[361281591,1747419032664,-508.14,0.00013698,2]
[361281592,1747419032678,-450.0,0.00013698,2]
[361281593,1747419032687,-450.0,0.00013698,2]
[361281594,1747419032696,-336.6132418,0.00013698,2]
[361281595,1747419032706,-400.0,0.00013698,2]
[361281596,1747419032717,-450.0,0.00013698,2]
[361281597,1747419032727,-450.0,0.00013698,2]
[361281598,1747419032737,-500.0,0.00013698,2]
[361281599,1747419032747,-671.477046,0.00013699,2]
[361281600,1747419032757,-1729.8678239,0.00013699,2]
[361281601,1747419032766,-178.61,0.00013835,2]
[361281602,1747419032775,-450.0,0.00013835,2]
[361281603,1747419032785,-450.0,0.00013835,2]
[361281604,1747419032794,-450.0,0.00013835,2]
[361281605,1747419032804,-2341.92,0.00013835,2]
[361281606,1747419032814,-450.0,0.00013835,2]
[361281607,1747419032824,-450.0,0.00013835,2]
[361281608,1747419032833,-450.0,0.00013835,2]
[361281609,1747419032843,-450.0,0.00013835,2]
[361281610,1747419032853,-450.0,0.00013835,2]
[361281611,1747419032863,-450.0,0.00013835,2]
[361281612,1747419032874,-450.0,0.00013835,2]
[361281613,1747419032884,-450.0,0.00013835,2]
[361281614,1747419032893,-450.0,0.00013835,2]
[361281615,1747419032903,-160.0,0.00013908,2]
[361281616,1747419032913,-160.0,0.00013909,2]
[361281617,1747419032922,-160.0,0.00013909,2]
[361281618,1747419032932,-422.39640784,0.00013909,2]
[361281619,1747419032942,-998.24360331,0.00013909,2]
[361281620,1747419032952,-212.26722696,0.00013909,2]
[361281621,1747419032961,-5940.07048213,0.00013924,2]
[361281622,1747419032971,-450.0,0.00013972,2]
[361281623,1747419032981,-450.0,0.00013972,2]
[361281624,1747419032991,-450.0,0.00013972,2]
[361281625,1747419033001,-2341.92,0.00013972,2]
[361281626,1747419033011,-450.0,0.00013972,2]
[361281627,1747419033021,-450.0,0.00013972,2]
[361281628,1747419033031,-178.42,0.00013972,2]
[361281629,1747419033041,-450.0,0.00013972,2]
[361281630,1747419033051,-450.0,0.00013972,2]
[361281631,1747419033061,-450.0,0.00013972,2]
[361281632,1747419033072,-300.0,0.00013972,2]
[361281633,1747419033082,-450.0,0.00013972,2]
[361281634,1747419033092,-450.0,0.00013972,2]
[361281635,1747419033101,-500.0,0.00013972,2]
[361281636,1747419033111,-1637.4849,0.00014,2]
[361281637,1747419033121,-450.0,0.00014109,2]
[361281638,1747419033131,-450.0,0.00014109,2]
[361281639,1747419033141,-233.85,0.00014109,2]
[361281640,1747419033151,-2341.92,0.00014109,2]
[361281641,1747419033161,-433.87,0.00014109,2]
[361281642,1747419033170,-282.5605052,0.00014109,2]
[361281643,1747419033180,-450.0,0.00014109,2]
[361281644,1747419033189,-450.0,0.00014109,2]
[361281645,1747419033199,-450.0,0.00014109,2]
[361281646,1747419033208,-450.0,0.00014109,2]
[361281647,1747419033218,-487.4159798,0.00014109,2]
[361281648,1747419033227,-151.0,0.00014223,2]
[361281649,1747419033236,-207.4,0.00014223,2]
[361281650,1747419033246,-500.0,0.00014237,2]
[361281651,1747419033256,-362.11,0.00014246,2]
[361281652,1747419033266,-450.0,0.00014246,2]
[361281653,1747419033275,-2341.92,0.00014246,2]
[361281654,1747419033285,-450.0,0.00014246,2]
[361281655,1747419033296,-450.0,0.00014246,2]
[361281656,1747419033305,-433.2,0.00014246,2]
[361281657,1747419033314,-450.0,0.00014246,2]
[361281658,1747419033323,-500.0,0.00014246,2]
[361281659,1747419033333,-5940.07048213,0.00014249,2]
[361281660,1747419033342,-450.0,0.00014383,2]
[361281661,1747419033351,-2341.92,0.00014383,2]
[361281662,1747419033360,-450.0,0.00014383,2]
[361281663,1747419033370,-450.0,0.00014383,2]
[361281664,1747419033379,-500.0,0.0001452,2]
[361281665,1747419033388,-450.0,0.0001452,2]
[361281666,1747419033398,-2341.92,0.0001452,2]
[361281667,1747419033407,-450.0,0.0001452,2]
[361281668,1747419033425,-450.0,0.0001452,2]
[361281669,1747419033437,-5940.07048213,0.00014575,2]
[361281670,1747419033447,-450.0,0.00014657,2]
[361281671,1747419033456,-2341.92,0.00014657,2]
[361281672,1747419033467,-450.0,0.00014657,2]
[361281673,1747419033476,-450.0,0.00014657,2]
[361281674,1747419033486,-154.670011,0.000147,5]
[361281675,1747419033496,-152.278,0.00014725,2]
[361281676,1747419033506,-546.0,0.00014725,2]
[361281677,1747419033515,-706.0,0.00014725,2]
[361281678,1747419033525,-2238.0,0.00014725,2]
[361281679,1747419033535,-652.84442803,0.00014783,2]
[361281680,1747419033545,-1000.0,0.00014785,2]
[361281681,1747419033554,-500.0,0.00014794,2]
[361281682,1747419033563,-168.909,0.00014794,2]
[361281683,1747419033574,-450.0,0.00014794,2]
[361281684,1747419033584,-2341.92,0.00014794,2]
[361281685,1747419033593,-400.0,0.00014794,2]
[361281686,1747419033603,-184.66,0.00014794,2]
[361281687,1747419033613,-294.90419353,0.000148,2]
[361281688,1747419033623,-823.0,0.00014865,2]
[361281689,1747419033633,-4016.71339569,0.000149,2]
[361281690,1747419033642,-5940.07048213,0.000149,2]
[361281691,1747419033652,-5077.75574671,0.00014911,2]
[361281692,1747419033661,-1384.9170997,0.00014924,2]
[361281693,1747419033675,-450.0,0.00014931,2]
[361281694,1747419033684,-2341.92,0.00014931,2]
[361281695,1747419033694,-2200.0,0.00014934,2]
[361281696,1747419033703,-501.70788395,0.00014973,2]
[361281697,1747419033715,-501.61457151,0.00014973,2]
[361281698,1747419033725,-500.0,0.00014973,2]
[361281699,1747419033735,-500.0,0.00014973,2]
[361281700,1747419033747,-500.0,0.00014973,2]
[361281701,1747419033758,-500.0,0.00014973,2]
[361281702,1747419033768,-500.0,0.00014973,2]